[Event "Fagernes Chess GM-Swiss 2024"]
[Site "Fagernes"]
[Date "2024.03.24"]
[Round "1.6"]
[White "Gorshtein, Ido"]
[Black "Krishnan, Ritvik"]
[Result "1-0"]
[ECO "A30"]
[WhiteElo "2539"]
[BlackElo "2277"]
[Annotator "TA"]
[PlyCount "120"]
[EventDate "2024.03.25"]
[EventType "swiss"]
[EventCountry "NOR"]
[SourceTitle "playchess.com"]
[Source "ChessBase"]
[SourceQuality "1"]
[TimeControl "40/6000+30:2400+30"]

{[%evp 22,120,39,31,35,0,-4,-7,-10,-18,-9,0,-8,-9,-10,-8,6,0,0,0,0,0,4,2,31,37,43,0,24,18,25,18,18,0,38,0,51,38,49,65,53,34,85,39,108,61,126,126,112,95,103,65,65,65,65,65,108,65,173,65,65,0,116,65,65,65,65,65,65,33,33,33,33,33,133,74,145,154,141,33,333,270,304,277,719,648,987,935,1060,1043,29967,29968,29973,29974,29976,29977,29978,29979,29977,29972,1675]} 1. c4 {[%emt 0:00:06]} c5 {[%emt 0:00:07]} 2. Nf3 {[%emt 0:00:04]} Nc6 {[%emt 0:00:06]} 3. Nc3 {[%emt 0:00:33]} g6 {[%emt 0:00:04]} 4. e3 {[%emt 0:00:07]} Nf6 {[%emt 0:00:03][%cal Bg8f6,Bf6d5,Bd5c3][%mdl 32]} 5. d4 {[%emt 0:00:11]} cxd4 {[%emt 0:00:04]} 6. exd4 {[%emt 0:00:09]} d5 {[%emt 0:00:03]} 7. cxd5 {[%emt 0:00:15]} Nxd5 {[%emt 0:00:05]} 8. Qb3 {[%emt 0:00:10]} Nxc3 {[%emt 0:00:17]} 9. Bc4 {[%emt 0:00:18]} Nd5 {[%emt 0:00:02]} 10. Bxd5 {[%emt 0:00:10]} e6 {[%emt 0:00:02]} 11. Bxc6+ {[%emt 0:00:12]} bxc6 {[%emt 0:00:10]} 12. O-O {[%emt 0:01:29]} Qd5 {[%emt 0:00:02]} 13. Qxd5 {[%emt 0:10:07]} cxd5 {[%emt 0:00:42]} 14. Bf4 {[%emt 0:00:03]} f6 {[%emt 0:12:34] Die Stellung ist ausgeglichen.} 15. Rfc1 {[%emt 0:08:02]} g5 {[%emt 0:08:58]} 16. Bg3 {[%emt 0:01:16]} Be7 {[%emt 0:02:41]} 17. Nd2 {[%emt 0:17:36][%cal Bf3d2,Bd2b3,Bb3c5][%mdl 32]} Bd7 {[%emt 0:13:48]} 18. Nb3 {[%emt 0:01:30]} Bd8 {[%emt 0:06:08]} 19. Bc7 {[%emt 0:25:16]} Ke7 {[%emt 0:02:19]} 20. Bxd8+ {[%emt 0:01:17]} Rhxd8 {[%emt 0:01:03]} 21. Rc3 {[%emt 0:01:39]} h5 {[%emt 0:06:03]} 22. Nc5 {[%emt 0:03:00]} Rdc8 {[%emt 0:12:29][%cal Bd8c8,Bc8c6,Bc6b6][%mdl 32]} 23. Re1 {[%emt 0:03:25]} Rc6 {[%emt 0:05:36]} 24. h4 {[%emt 0:02:16]} g4 {[%emt 0:01:32]} 25. Re2 {[%emt 0:04:07]} Rac8 {[%emt 0:05:26]} 26. b4 {[%emt 0:07:32]} Rb6 {[%emt 0:03:10]} 27. Ra3 {[%emt 0:02:38]} Rc7 {[%emt 0:01:42]} 28. Rb3 {[%emt 0:00:16]} Kd6 {[%emt 0:07:48]} (28... Bb5 $11 29. Re1 Kf7) 29. Rbe3 {[%emt 0:04:28][%cal Re3e6] Droht Matt per Rxe6+.} Ke7 {[%emt 0:02:27]} 30. a3 {[%emt 0:00:39]} Kf7 {[%emt 0:02:49]} 31. f4 {[%emt 0:01:51][%cal Of4f5]} Bc8 {[%emt 0:03:04]} (31... Kg6 $14) 32. Kf2 {[%emt 0:01:33]} (32. Rb2 $16) 32... Kg6 {[%emt 0:03:53]} (32... a5 $1 $14) 33. g3 {[%emt 0:00:08]} (33. Nxe6 Bxe6 34. Rxe6 Rxe6 35. Rxe6 Kf5 $17) (33. Rb2 $1 $16) 33... Kf5 {[%emt 0:00:50]} (33... Rb5 $14) 34. Rb2 $1 $16 {[%emt 0:01:23]} a6 {[%emt 0:03:46]} 35. Ke1 {[%emt 0:01:57]} Bd7 {[%emt 0:01:43]} 36. Kd2 {[%emt 0:01:04] Weiß steht deutlich aktiver.} Bb5 {[%emt 0:01:13]} 37. a4 {[%emt 0:03:24]} Bc4 {[%emt 0:00:44]} 38. Kc3 {[%emt 0:01:17]} Rc8 {[%emt 0:01:31]} 39. Rb1 {[%emt 0:01:37][%cal Ob4b5]} Rcc6 {[%emt 0:01:19] [#]} (39... Ra8 $14) 40. Rbe1 {[%emt 0:00:40]} (40. b5 $1 $18 {[%cal Rb5c6]} axb5 41. a5 Rxc5 (41... Rb8 42. Kb4 $16) 42. dxc5 (42. axb6 Rc6 $11)) 40... Rd6 $14 {[%emt 0:00:24]} 41. Rb1 {[%emt 0:43:46]} (41. Rc1 $14) 41... Rd8 {[%emt 0:43:13] [#]} (41... Rdc6 $1 $11 {bleibt in der Remisbreite.}) 42. Ree1 {[%emt 0:02:54]} (42. b5 $1 $16 axb5 43. a5) 42... Ra8 {[%emt 0:00:00]} 43. Rb2 {[%emt 0:00:00]} Ra7 {[%emt 0:00:00]} 44. Ra1 {[%emt 0:00:00]} Ra8 {[%emt 0:00:00]} 45. b5 {[%emt 0:00:00]} axb5 {[%emt 0:00:00]} 46. a5 {[%emt 0:00:00]} Rc6 {[%emt 0:00:00]} 47. Kb4 {[%emt 0:00:00][%mdl 1024] Weiss hat Kompensation.} Ra7 {[%emt 0:00:00]} ({Vorzuziehen ist} 47... Rc7 $1 $14) 48. Re1 {[%emt 0:00:00]} (48. Rbb1 $142) 48... Rd6 {[%emt 0:00:00]} ({Günstiger ist} 48... Rc8) 49. Rbb1 $16 {[%emt 0:00:00]} Rc6 {[%emt 0:00:00]} 50. Ra1 {[%emt 0:00:00]} ({Besser ist} 50. Re3 $16) 50... Rd6 $2 {[%emt 0:00:00][%mdl 8192] Danach kann Schwarz die Partie nicht mehr halten.} (50... Ra8 $14) 51. Ra3 {[%emt 0:00:00] Und jetzt Rae3 wäre schön.} Rc6 {[%emt 0:00:00]} 52. Rae3 {[%emt 0:00:00][%cal Re3e6]} Kg6 $2 {[%emt 0:00:00]} (52... Rxc5 53. dxc5 (53. Kxc5 Rxa5 54. Rxe6 b4+ 55. Kxb4 Rb5+ 56. Ka4 Rb2 $16) 53... Ra6) 53. Rxe6 $18 {[%emt 0:00:00]} Rxe6 {[%emt 0:00:00]} 54. Rxe6 {[%emt 0:00:00][%mdl 4096] Endspiel. KRB-KRN} Kf5 55. Re8 Rg7 56. a6 {Weiß setzt Matt.} Ra7 57. Ka5 b4 {[%cal Bb5b4,Bb4b3,Bb3b2][%mdl 32]} 58. Kb6 Rxa6+ 59. Nxa6 b3 60. Re1 b2 {Gewichteter Fehlerwert: Weiß=0.20 (präzise) /Schwarz=0.47.  Verlustzug:     	---       	Schwarz=1     Fehler:       	Weiß=7     	Schwarz=9     Ungenau:       	Weiß=6     	Schwarz=4     OK:         	Weiß=11    	Schwarz=13    Bester:       	Weiß=3     	Schwarz=3     Stark:        	Weiß=1     	---} 1-0

[Event "Fagernes Chess GM-Swiss 2024"]
[Site "Fagernes"]
[Date "2024.03.24"]
[Round "1.7"]
[White "Moreby, James"]
[Black "Urkedal, Frode Olav Olsen"]
[Result "0-1"]
[ECO "B90"]
[WhiteElo "2260"]
[BlackElo "2536"]
[Annotator "TA"]
[PlyCount "92"]
[EventDate "2024.03.25"]
[EventType "swiss"]
[EventCountry "NOR"]
[SourceTitle "playchess.com"]
[Source "ChessBase"]
[SourceQuality "1"]
[TimeControl "40/6000+30:2400+30"]

{[%evp 18,92,30,4,11,5,15,-16,-21,-16,-9,-14,-14,-28,-10,-11,56,54,52,54,56,27,65,23,39,33,49,23,49,48,45,15,71,0,16,10,15,8,12,3,6,-35,-34,-38,-47,-47,-62,-48,-56,-320,-319,-298,-260,-229,-227,-294,-305,-390,-374,-346,-346,-706,-696,-666,-662,-808,-781,-1066,-1035,-1843,-1601,-2225,-2192,-2505,-1278,-2425,-2327]} 1. e4 {[%emt 0:00:16]} c5 {[%emt 0:00:14]} 2. Nf3 {[%emt 0:00:17]} d6 {[%emt 0:00:06]} 3. d4 {[%emt 0:00:16]} cxd4 {[%emt 0:00:05]} 4. Nxd4 {[%emt 0:00:05]} Nf6 {[%emt 0:00:09]} 5. Nc3 {[%emt 0:00:05]} a6 {[%emt 0:00:03]} 6. Be3 {[%emt 0:00:39]} e5 {[%emt 0:00:30]} 7. Nb3 {[%emt 0:00:38]} Be6 {[%emt 0:00:15]} 8. f3 {[%emt 0:03:22]} h5 {[%emt 0:00:08]} 9. Qd2 {[%emt 0:01:20]} Nbd7 {[%emt 0:00:49]} 10. a4 {[%emt 0:10:03]} Be7 {[%emt 0:08:13]} 11. Be2 {[%emt 0:04:48]} O-O {[%emt 0:07:00]} 12. a5 {[%emt 0:03:54]} b5 {[%emt 0:04:03] The position is equal.} 13. Nd5 {[%emt 0:28:07]} Nxd5 {[%emt 0:14:14]} 14. exd5 {[%emt 0:00:08]} Bf5 {[%emt 0:00:04]} 15. O-O {[%emt 0:04:10]} Bg6 {[%emt 0:00:32]} 16. Nc1 {[%emt 0:15:54]} Nf6 {[%emt 0:03:44]} ({Black should play} 16... f5 $11) 17. Na2 $14 {[%emt 0:01:01]} h4 {[%emt 0:04:20][%cal Bh5h4,Bh4h3][%mdl 32]} 18. Nb4 {[%emt 0:01:34]} Qd7 {[%emt 0:01:19]} 19. c4 {[%emt 0:06:22]} bxc4 {[%emt 0:00:53]} 20. Bxc4 {[%emt 0:00:54]} h3 {[%emt 0:00:24]} 21. g3 {[%emt 0:02:17]} (21. Bxa6 hxg2 22. Rfc1 (22. Qxg2 Rxa6 23. Nxa6 Qb7 $17) (22. Kxg2 Bd8 $17) 22... Bd8 $15) (21. Nxa6 Rfc8 22. Rfc1 Rxc4 23. Rxc4 Rxa6 $17) 21... e4 {[%emt 0:01:08]} 22. f4 $1 {[%emt 0:01:05]} (22. Nxa6 $2 {perishes.} Qc8 23. Rfc1 (23. Qe2 $2 exf3 24. Rxf3 Bh5 $19) 23... Rxa6 $17 (23... exf3 24. Bf1 $17)) (22. Bxa6 Bd8 (22... exf3 23. Bd3 $15) 23. Bb6 exf3 $17) 22... Ng4 {[%emt 0:01:05]} 23. Nc6 {[%emt 0:04:22][%cal Of4f5]} Bf6 {[%emt 0:03:54][%cal Of6b2]} 24. Rab1 {[%emt 0:00:40]} Rfc8 {[%emt 0:09:31]} (24... Bh5 $11) 25. Rfc1 {[%emt 0:01:23]} (25. b4 $16) 25... Qf5 {[%emt 0:01:54]} 26. Re1 {[%emt 0:08:28]} Nxe3 {[%emt 0:01:12]} 27. Rxe3 {[%emt 0:00:48]} Bh5 {[%emt 0:05:00]} 28. b4 {[%emt 0:04:22]} Bf3 {[%emt 0:03:33]} 29. Rc1 {[%emt 0:05:13]} g5 {[%emt 0:01:54]} 30. Rxf3 {[%emt 0:00:02]} exf3 {[%emt 0:00:16]} 31. Bd3 {[%emt 0:00:09] Prevents Qe4} Qg4 {[%emt 0:01:31]} (31... Qxd5 $2 {loses.} 32. Bh7+ Kxh7 33. Qxd5 $18) 32. Rc4 {[%emt 0:00:16]} Qh5 {[%emt 0:11:10] And now ...Re8 would win.} 33. Qf2 $2 {[%emt 0:03:17][%mdl 8192] Loses the game.} ({Better is} 33. f5 $1 $15) 33... g4 $19 {[%emt 0:02:37]} 34. Be4 {[%emt 0:00:43]} Kg7 {[%emt 0:02:55]} 35. Qd2 {[%emt 0:00:22]} Rab8 {[%emt 0:04:58]} 36. Qd3 {[%emt 0:00:24]} Rb5 {[%emt 0:00:27]} 37. Na7 {[%emt 0:00:42]} Rxc4 {[%emt 0:00:29]} 38. Qxc4 {[%emt 0:00:03]} Rb8 {[%emt 0:00:28] [#] White must now prevent ...Qh8.} 39. Nc6 $2 {[%emt 0:00:31]} (39. Nc8 Qh8 40. Nxd6) 39... Re8 {[%emt 0:00:22] Black is clearly winning.} 40. Kf1 Ba1 {[%emt 0:04:26]} 41. Bd3 {[%emt 0:03:52]} Qh6 {[%emt 0:07:36] ...Qf6 is the strong threat.} 42. b5 {[%emt 0:08:51]} axb5 {[%emt 0:02:43]} 43. Qxb5 {[%emt 0:00:08]} Qf6 {[%emt 0:03:50] [#] ( -> ...Qc3)} 44. Qb3 {[%emt 0:03:16]} Bc3 {[%emt 0:01:44]} 45. a6 {[%emt 0:02:09]} Re1+ {[%emt 0:00:06]} 46. Kf2 {[%emt 0:00:01]} Rh1 {[%emt 0:03:07] Weighted Error Value: White=0.95/Black=0.08 (flawless) .  Loses game:     	White=1     	---        Mistake:       	White=2     	Black=2      Inaccurate:     	White=5     	Black=1      OK:         	White=9     	Black=15     Best:        	---       	Black=2      Strong:       	White=1     	---} 0-1

[Event "Fagernes Chess GM-Swiss 2024"]
[Site "Fagernes"]
[Date "2024.03.24"]
[Round "1.8"]
[White "Kulaots, Kaido"]
[Black "Lindh, Fredrik"]
[Result "1-0"]
[ECO "A15"]
[WhiteElo "2534"]
[BlackElo "2256"]
[Annotator "TA"]
[PlyCount "71"]
[EventDate "2024.03.25"]
[EventType "swiss"]
[EventCountry "NOR"]
[SourceTitle "playchess.com"]
[Source "ChessBase"]
[SourceQuality "1"]
[TimeControl "40/6000+30:2400+30"]

{[%evp 21,71,-30,0,0,0,0,0,0,0,0,10,0,9,11,9,0,0,10,0,10,76,79,84,84,72,72,100,116,151,150,152,159,153,159,153,164,166,164,173,165,322,292,350,344,535,539,525,519,1054,1023,1432,1279]} 1. Nf3 {[%emt 0:00:12]} Nf6 {[%emt 0:00:09]} 2. c4 {[%emt 0:00:06]} c6 {[%emt 0:00:18]} 3. d4 {[%emt 0:01:41]} d5 {[%emt 0:00:06]} 4. Qb3 {[%emt 0:00:18]} dxc4 {[%emt 0:00:19]} 5. Qxc4 {[%emt 0:00:05]} Bf5 {[%emt 0:00:07]} 6. g3 {[%emt 0:01:25]} e6 {[%emt 0:01:12]} 7. Bg2 {[%emt 0:00:17]} Be7 {[%emt 0:00:09]} 8. O-O {[%emt 0:01:02]} O-O {[%emt 0:01:57]} 9. Nc3 {[%emt 0:05:01]} Nbd7 {[%emt 0:04:46]} 10. Qb3 {[%emt 0:03:52]} Qb6 {[%emt 0:06:02]} 11. Re1 {[%emt 0:09:31]} Ne4 {[%emt 0:08:49]} 12. Nh4 {[%emt 0:04:28]} Bxh4 {[%emt 0:00:52]} (12... Qxd4 $2 {loses.} 13. Nxe4 (13. Qxb7 $2 Qxf2+ 14. Kh1 Qxe1+) (13. Be3 Qb4 $18) 13... Bxe4 14. Rd1 $18 (14. Qxb7 Rfb8 $11)) 13. gxh4 {[%emt 0:03:33] [#] Qxb6 would now be deadly.} Nxc3 {[%emt 0:16:51]} (13... Qxd4 $2 {too greedy.} 14. Nxe4 Bxe4 15. Rd1 $18 (15. Qxb7 Bxg2 16. Kxg2 Ne5 $17)) 14. bxc3 {[%emt 0:18:29] The position is equal.} e5 {[%emt 0:26:26]} 15. e4 {[%emt 0:12:09]} Be6 {[%emt 0:09:36]} 16. Qd1 {[%emt 0:07:46]} Rfd8 {[%emt 0:04:23]} 17. a4 {[%emt 0:12:12]} Nc5 {[%emt 0:15:18]} 18. Be3 {[%emt 0:03:53]} Qa5 {[%emt 0:03:23]} 19. d5 {[%emt 0:07:34]} cxd5 {[%emt 0:00:17]} 20. exd5 {[%emt 0:00:06]} e4 {[%emt 0:01:29]} (20... f6 $11) 21. c4 $16 {[%emt 0:01:04] White stays focused until the end.} Bf5 {[%emt 0:00:17]} 22. Bxc5 {[%emt 0:07:29]} Qxc5 {[%emt 0:00:07]} 23. Bxe4 {[%emt 0:00:05]} Bxe4 {[%emt 0:01:08]} 24. Rxe4 {[%emt 0:00:06]} Rd6 {[%emt 0:02:34]} 25. Qe2 {[%emt 0:00:49]} Rg6+ {[%emt 0:01:56]} 26. Kh1 {[%emt 0:00:41][%cal Bg1h1,Bh1g2,Bg2h3][%mdl 32]} Rf8 {[%emt 0:00:29]} 27. h5 {[%emt 0:04:30][%cal Bh4h5,Bh5h6][%mdl 32]} Rf6 {[%emt 0:00:56]} 28. Kg2 {[%emt 0:00:13]} Rf5 {[%emt 0:01:11]} 29. Rb1 {[%emt 0:01:34]} b6 {[%emt 0:00:57]} 30. Rb3 {[%emt 0:00:19] Against Qa3} g6 $2 {[%emt 0:01:13]} (30... h6 {might work better.} 31. Rg3 Kh8) 31. h6 $18 {[%emt 0:02:35]} Rh5 {[%emt 0:01:32]} 32. Rh3 {[%emt 0:01:03]} Rxh3 {[%emt 0:00:06]} (32... Rf5 $142 33. Rhe3 Rg5+ 34. Rg3 Rf5) 33. Kxh3 {[%emt 0:00:04] White is clearly winning.} Qc8+ {[%emt 0:00:07]} 34. Kg2 {[%emt 0:00:26]} Qd8 {[%emt 0:01:22]} (34... Qc5 $142 35. Qf3 f6) 35. Re7 {[%emt 0:01:23][%cal Oe2e5] [#] White threatens Qe5! and mate.} Qc8 {[%emt 0:00:51]} 36. Qe4 {[%emt 0:00:49] Weighted Error Value: White=0.01 (flawless) /Black=0.34.  Mistake:       	---       	Black=4      Inaccurate:     	---       	Black=3      OK:         	White=12    	Black=9      Best:        	White=4     	---} 1-0

[Event "Fagernes Chess GM-Swiss 2024"]
[Site "Fagernes"]
[Date "2024.03.24"]
[Round "1.9"]
[White "Rasmussen, Casper"]
[Black "Raja Rithvik R"]
[Result "0-1"]
[ECO "E04"]
[WhiteElo "2244"]
[BlackElo "2532"]
[Annotator "TA"]
[PlyCount "78"]
[EventDate "2024.03.25"]
[EventType "swiss"]
[EventCountry "NOR"]
[SourceTitle "playchess.com"]
[Source "ChessBase"]
[SourceQuality "1"]
[TimeControl "40/6000+30:2400+30"]

{[%evp 11,78,19,9,24,8,10,0,12,12,0,11,1,5,8,5,6,14,11,18,0,0,0,0,-13,-14,-22,0,0,0,-30,-25,-27,-24,-29,-23,-23,-23,-23,-24,-23,-24,-25,-24,-29,-33,-62,-51,-62,-24,-44,-39,-187,-201,-193,-196,-287,-273,-295,-292,-271,-290,-350,-273,-470,-460,-1121,-1095,-1957,-1224]} 1. d4 {[%emt 0:00:04]} Nf6 {[%emt 0:00:11]} 2. Nf3 {[%emt 0:00:07]} d5 {[%emt 0:00:16]} 3. c4 {[%emt 0:00:06]} e6 {[%emt 0:00:12]} 4. g3 {[%emt 0:00:11]} dxc4 {[%emt 0:01:59]} 5. Bg2 {[%emt 0:00:39]} c6 {[%emt 0:00:37]} 6. Ne5 {[%emt 0:00:55]} Bb4+ {[%emt 0:00:22]} 7. Nc3 {[%emt 0:00:39][%cal Oe1g1]} Nd5 {[%emt 0:02:14]} 8. O-O {[%emt 0:01:49]} Nxc3 {[%emt 0:00:47]} 9. bxc3 {[%emt 0:00:09] The position is equal.} Bxc3 {[%emt 0:00:04] [#]} 10. Nxc4 $1 {[%emt 0:00:31][%cal Oc1a3,Be5c4,Bc4b2,Bb2d3,Bd3c5][%mdl 32] Threatens to win with Ba3!} b5 {[%emt 0:00:25]} (10... Bxa1 $5 11. Ba3 $8 f6 $17 (11... Bxd4 $2 {loses.} 12. Nd6+ Kd7 13. Qxd4 $18)) 11. Bb2 {[%emt 0:03:27]} Bxb2 {[%emt 0:00:37]} 12. Nxb2 {[%emt 0:00:02]} a5 {[%emt 0:00:07]} 13. e3 {[%emt 0:05:15]} O-O {[%emt 0:00:27]} 14. Nd3 {[%emt 0:01:47][%mdl 1024] White has compensation.} Qd6 {[%emt 0:00:05]} 15. Qc2 {[%emt 0:04:40]} Bd7 {[%emt 0:00:25]} 16. Rfc1 {[%emt 0:09:21]} Rc8 {[%emt 0:00:30]} 17. Qc5 {[%emt 0:11:10]} Qxc5 {[%emt 0:00:05]} 18. Nxc5 {[%emt 0:01:07]} Ra7 {[%emt 0:00:04]} 19. Rab1 {[%emt 0:15:27]} Be8 {[%emt 0:02:21]} 20. Rb2 {[%emt 0:13:52]} Kf8 {[%emt 0:04:56]} 21. f4 {[%emt 0:09:19]} Ke7 {[%emt 0:03:15]} 22. Kf2 {[%emt 0:00:27]} Nd7 {[%emt 0:04:48]} 23. Nxd7 {[%emt 0:00:44]} Bxd7 {[%emt 0:00:07]} ({Don't do} 23... Kxd7 24. Rbc2 $17) 24. Rc5 {[%emt 0:01:07]} Ra6 {[%emt 0:01:52]} 25. Be4 {[%emt 0:03:39]} Rb8 {[%emt 0:06:38]} 26. Ke2 {[%emt 0:03:12]} f6 {[%emt 0:07:42]} 27. Kd3 {[%emt 0:01:56]} h6 {[%emt 0:06:25]} 28. h4 {[%emt 0:00:39]} Kd6 {[%emt 0:00:40]} 29. g4 {[%emt 0:01:48]} Re8 {[%emt 0:01:07]} 30. Rg2 {[%emt 0:05:22]} e5 {[%emt 0:02:37]} 31. g5 {[%emt 0:01:21] This costs White the game.} (31. Rgc2 $15) 31... exd4 $19 {[%emt 0:02:47]} 32. exd4 {[%emt 0:00:02] [#]} Be6 $1 {[%emt 0:00:39] aiming for ...Bc4+.} 33. Bf3 {[%emt 0:07:31]} (33. gxf6 $142 gxf6 (33... Bc4+ 34. Ke3 $14) 34. Bf5 Bc4+ 35. Kc2) 33... Bc4+ {[%emt 0:03:48]} 34. Kd2 {[%emt 0:00:01][%cal Oa2a4]} Bxa2 {[%emt 0:00:19]} 35. gxh6 {[%emt 0:00:13]} gxh6 {[%emt 0:00:02] And now ...a4 would win.} 36. Rg6 {[%emt 0:00:30][%cal Oc5f5]} Rf8 {[%emt 0:04:18]} 37. Rxh6 $2 {[%emt 0:01:48]} (37. Rf5 Ke7 38. Bxc6) 37... a4 {[%emt 0:00:22] ...a3 is the strong threat. Black is clearly winning.} 38. Kc3 {[%emt 0:05:42]} (38. Rg6 $142) 38... a3 {[%emt 0:00:30] White must now prevent ...Bb1.} 39. Rg6 {[%emt 0:00:07]} Bb1 {[%emt 0:00:19] Weighted Error Value: White=0.63/Black=0.06 (flawless) .  Mistake:       	White=4     	---        Inaccurate:     	White=3     	Black=1      OK:         	White=9     	Black=14     Best:        	---       	Black=2      Strong:       	---       	Black=1} 0-1

[Event "Fagernes Chess GM-Swiss 2024"]
[Site "Fagernes"]
[Date "2024.03.24"]
[Round "1.10"]
[White "Pranav Anand"]
[Black "Brattgjerd, Isak Vinh"]
[Result "1-0"]
[ECO "B12"]
[WhiteElo "2519"]
[BlackElo "2228"]
[Annotator "TA"]
[PlyCount "61"]
[EventDate "2024.03.25"]
[EventType "swiss"]
[EventCountry "NOR"]
[SourceTitle "playchess.com"]
[Source "ChessBase"]
[SourceQuality "1"]
[TimeControl "40/6000+30:2400+30"]

{[%evp 9,61,2,0,4,21,21,43,13,34,-25,60,71,88,81,109,82,105,84,145,147,137,140,231,270,238,218,325,275,266,272,408,244,450,460,453,458,456,448,1255,1382,1499,1477,1297,1254,1395,1344,1331,1295,1298,1100,1276,1245,5887,2930]} 1. e4 {[%emt 0:00:07]} c6 {[%emt 0:00:01]} 2. d4 {[%emt 0:00:12]} d5 {[%emt 0:00:03]} 3. e5 {[%emt 0:00:07]} c5 {[%emt 0:00:14]} 4. Nf3 {[%emt 0:00:19]} cxd4 {[%emt 0:00:04]} 5. Qxd4 {[%emt 0:00:23]} Nc6 {[%emt 0:00:04]} 6. Qf4 {[%emt 0:00:06]} g6 {[%emt 0:02:53] White must now prevent ...Bh6.} 7. Nc3 {[%emt 0:00:44]} d4 {[%emt 0:20:14] [#] Wards off Be3} 8. Bc4 $1 {[%emt 0:12:23] White is slightly better.} Bf5 $1 {[%emt 0:00:25]} 9. Ne4 {[%emt 0:09:48]} ({White should try} 9. Nb5 $14 Rc8 10. O-O (10. Nbxd4 $2 Nxd4 11. Nxd4 Rxc4 $19)) 9... e6 {[%emt 0:35:34]} ({Black should play} 9... Bh6 $11 10. Qh4 Bg7) 10. O-O $14 {[%emt 0:08:31]} Bxe4 {[%emt 0:10:56] White leaves nothing to chance now.} 11. Qxe4 {[%emt 0:01:05]} Qb6 {[%emt 0:00:39] Wards off Bb5} 12. c3 {[%emt 0:11:03]} dxc3 {[%emt 0:03:33]} 13. bxc3 {[%emt 0:00:25]} Bg7 {[%emt 0:00:59]} (13... Qc7 $142) 14. Ba3 {[%emt 0:05:39]} Nge7 {[%emt 0:03:52]} 15. Bd6 {[%emt 0:09:04] Rab1 would now be deadly. White is much more active. The black rooks are passive.} Nf5 {[%emt 0:03:39]} (15... Qd8 $16 {was called for.} 16. Rab1 Qc8) 16. Rab1 $18 {[%emt 0:01:30]} Nxd6 {[%emt 0:00:47]} 17. exd6 {[%emt 0:00:07]} Qd8 {[%emt 0:00:23] [#]} (17... Qc5 $142) 18. Ba6 $1 {[%emt 0:07:01][%mdl 512]} Na5 {[%emt 0:03:40]} (18... Rb8 19. Bxb7) 19. Bxb7 {[%emt 0:03:32]} Nxb7 {[%emt 0:00:52]} (19... Rb8 {is a better defense.} 20. Qa4+ Kf8) 20. Qc6+ {[%emt 0:05:11]} (20. Rxb7 O-O $18) (20. d7+ $142 Qxd7 21. Rxb7 (21. Qxb7 Qxb7 22. Rxb7 Bxc3 $11)) 20... Kf8 $2 {[%emt 0:05:45]} (20... Qd7 {keeps fighting.} 21. Qxd7+ (21. Qxb7 Qxb7 22. Rxb7 Bxc3 $18) 21... Kxd7 22. Rxb7+ Kxd6 23. Rxf7 Rhg8 24. Rd1+ Kc6) 21. Rxb7 {[%emt 0:00:35] White is clearly winning.} (21. Qxb7 Bf6 22. c4 Rc8 $18) 21... Bf6 {[%emt 0:01:25] Prevents Ng5.} 22. c4 {[%emt 0:01:02]} Kg7 {[%emt 0:01:03]} 23. c5 {[%emt 0:01:56]} Qa5 {[%emt 0:03:35] [#]} (23... Rb8 $142 24. d7 (24. Rxa7 Rb4 $18) 24... Rxb7 25. Qxb7 Qe7 26. Qxa7 h6) 24. Rxf7+ $3 {[%emt 0:01:50][%mdl 512]} Kxf7 {[%emt 0:01:35]} 25. Qb7+ {[%emt 0:00:07]} Kf8 {[%emt 0:02:21][%cal Bf7f8,Bf8g7,Bg7h6][%mdl 32]} 26. Qxa8+ {[%emt 0:00:07]} Kg7 {[%emt 0:00:02]} 27. Qb7+ {[%emt 0:00:09]} Kh6 {[%emt 0:00:40]} 28. Qf7 {[%emt 0:00:47]} Bd8 {[%emt 0:02:38]} 29. c6 {[%emt 0:01:03][%cal Bc5c6,Bc6c7][%mdl 32] Hoping for c7.} Qc5 {[%emt 0:00:33]} 30. c7 {[%emt 0:00:23]} Bg5 {[%emt 0:00:10] Inhibits Qf4.} 31. h4 {[%emt 0:01:18] Weighted Error Value: White=0.27 (precise) /Black=0.50.  Mistake:       	White=2     	Black=7      Inaccurate:     	White=1     	Black=1      OK:         	White=7     	Black=5      Best:        	White=1     	Black=2      Strong:       	---       	Black=1      Brilliant:      	White=1     	---} (31. Nxg5 $142 Kxg5 32. h4+ (32. Qxe6 Rf8 33. Qe7+ Rf6 34. h4+ Kh6 35. Qxf6 Qc4 36. Re1 Qg4) 32... Kh6 33. Qf4+ (33. Qxe6 Kh5 34. Qf6 Re8 35. d7 Rf8 36. c8=Q Rxf6 37. Qxc5+ Rf5) 33... Kg7 34. d7 g5 35. hxg5 (35. d8=R gxf4 36. Rfd1 Qxc7 $16) (35. c8=Q Rxc8 36. dxc8=Q Qxc8 $18) 35... Qe7 36. c8=Q (36. c8=R Rd8 37. Rxd8 Qxd8 38. Qf6+ Qxf6 39. gxf6+ Kxf6 40. d8=Q+ Kg6)) 1-0